[Event "22nd Hoogeveen Open 2018"]
[Site "Hoogeveen"]
[Date "2018.10.20"]
[Round "1"]
[White "Iniyan, P."]
[Black "Biermann, Lenhard"]
[Result "*"]
[ECO "E52"]
[WhiteElo "2476"]
[BlackElo "2153"]
[Annotator "RC"]
[PlyCount "43"]
[EventDate "2018.10.20"]
[EventType "swiss"]
[EventCountry "NED"]
[SourceTitle "playchess.com"]
[Source "ChessBase"]
[SourceQuality "1"]
[TimeControl "40/5400+30:1800+30"]

1. d4 {[%emt 0:00:00]} e6 {[%emt 0:00:00]} 2. c4 {[%emt 0:00:23]} Nf6 {[%emt 0:00:00]} 3. Nc3 {[%emt 0:00:19]} Bb4 {[%emt 0:00:00]} 4. Nf3 {[%emt 0:00:24]} b6 {[%emt 0:02:03]} 5. e3 {[%emt 0:01:34]} O-O {[%emt 0:02:02]} 6. Bd3 {[%emt 0:00:06]} Bb7 {[%emt 0:02:04]} 7. O-O {[%emt 0:00:11]} d5 {[%emt 0:01:44]} 8. cxd5 {[%emt 0:02:07]} exd5 {[%emt 0:00:58]} 9. Ne5 {[%emt 0:00:30]} Nbd7 {[%emt 0:04:59]} 10. f4 {[%emt 0:01:30]} Ne8 {[%emt 0:18:06]} 11. Qa4 {[%emt 0:01:48]} Nxe5 {[%emt 0:06:21]} 12. fxe5 {[%emt 0:00:11]} Be7 {[%emt 0:01:03]} 13. Bd2 {[%emt 0:01:52]} g6 {[%emt 0:08:43]} 14. e4 {[%emt 0:08:28]} dxe4 {[%emt 0:09:09]} 15. Bxe4 {[%emt 0:00:07]} Bxe4 {[%emt 0:01:21]} 16. Nxe4 {[%emt 0:00:07]} b5 {[%emt 0:01:52]} 17. Qc2 {[%emt 0:00:07]} Qxd4+ {[%emt 0:00:49]} 18. Kh1 {[%emt 0:00:06]} Ng7 {[%emt 0:04:26]} 19. Bh6 {[%emt 0:01:44]} Qxe5 {[%emt 0:07:24]} 20. Rae1 {[%emt 0:03:18]} Nf5 {[%emt 0:10:24]} 21. Bxf8 {[%emt 0:00:43]} Bxf8 {[%emt 0:00:23]} 22. Qc6 {[%emt 0:00:06]} *

[Event "22nd Hoogeveen Open 2018"]
[Site "Hoogeveen"]
[Date "2018.10.20"]
[Round "1"]
[White "Miedema, David"]
[Black "Jelic, Bruno"]
[Result "1-0"]
[ECO "E94"]
[WhiteElo "2379"]
[BlackElo "2076"]
[Annotator "NA"]
[PlyCount "67"]
[EventDate "2018.10.20"]
[EventType "swiss"]
[EventCountry "NED"]
[SourceTitle "playchess.com"]
[Source "ChessBase"]
[SourceQuality "1"]
[TimeControl "40/5400+30:1800+30"]

1. e4 {[%emt 0:00:00]} g6 {[%emt 0:00:00]} 2. d4 {[%emt 0:00:00]} Bg7 {[%emt 0:00:00]} 3. c4 {[%emt 0:00:00]} d6 {[%emt 0:00:21]} 4. Nc3 {[%emt 0:00:00]} Nf6 {[%emt 0:00:27]} 5. Nf3 {[%emt 0:00:00]} O-O {[%emt 0:00:17]} 6. Be2 {[%emt 0:00:00]} Na6 {[%emt 0:00:13]} 7. Bg5 {[%emt 0:00:50]} c6 {[%emt 0:05:28]} 8. O-O {[%emt 0:00:24]} e5 {[%emt 0:08:44]} 9. d5 {[%emt 0:06:41]} h6 {[%emt 0:06:03] LiveBook: 42 Games E94: King's Indian: Classical: 6 Be2 e5 7 0-0: Various Black 7th moves} 10. Be3 {[%emt 0:00:07]} (10. Bh4 Qb6 11. dxc6 bxc6 12. Bxf6 Bxf6 13. Qxd6 Kg7 14. Na4 Qb7 15. Qa3 Rb8 16. b3 Bg4 17. Rad1 {½-½ (36) L'Ami,E (2634)-Gordievsky,D (2622) Wijk aan Zee 2018}) 10... Ng4 {[%emt 0:01:04]} 11. Bc1 {[%emt 0:00:14]} f5 {[%emt 0:00:43]} 12. exf5 {[%emt 0:00:30]} gxf5 {[%emt 0:00:25]} 13. g3 {[%emt 0:00:24]} Nc5 $146 {[%emt 0:18:22]} ({Predecessor:} 13... Nf6 14. Nh4 Nc5 15. Be3 cxd5 16. cxd5 {1-0 (39) Altrichter,U (2432)-Ritsema,R (2409) ICCF email 2015}) 14. Nh4 {[%emt 0:04:00]} e4 {[%emt 0:07:53]} 15. Nxf5 {[%emt 0:19:54]} Nxf2 {[%emt 0:02:13]} 16. Nxh6+ {[%emt 0:04:17]} Bxh6 {[%emt 0:00:54]} 17. Rxf2 {[%emt 0:01:06]} Rxf2 {[%emt 0:02:38]} 18. Bxh6 {[%emt 0:00:26]} Rf7 {[%emt 0:03:13]} 19. Qd2 {[%emt 0:07:12]} Bf5 {[%emt 0:07:38]} 20. Rf1 {[%emt 0:01:55]} Bg6 {[%emt 0:02:53]} 21. Rxf7 $14 {[%emt 0:01:04]} Kxf7 {[%emt 0:03:21]} 22. b4 {[%emt 0:09:48]} Nd3 {[%emt 0:04:51]} 23. Nxe4 {[%emt 0:02:27]} Bxe4 {[%emt 0:04:05]} 24. Bxd3 {[%emt 0:00:13]} cxd5 {[%emt 0:01:34]} 25. cxd5 {[%emt 0:07:57]} Bxd3 {[%emt 0:05:03]} 26. Qxd3 {[%emt 0:00:02]} Qe7 {[%emt 0:10:52]} 27. h4 {[%emt 0:07:19]} Ke8 {[%emt 0:02:57]} 28. Bg5 {[%emt 0:01:01]} Qe1+ {[%emt 0:00:39]} 29. Kg2 {[%emt 0:00:07]} Kd7 {[%emt 0:00:21]} 30. Qh7+ {[%emt 0:00:53]} Kc8 {[%emt 0:01:00]} 31. Qf7 {[%emt 0:04:46]} Qe2+ {[%emt 0:00:46]} 32. Kh3 {[%emt 0:00:03]} a5 {[%emt 0:00:27]} 33. bxa5 {[%emt 0:00:48]} Rxa5 {[%emt 0:00:21]} 34. Qf8+ {[%emt 0:00:05]} 1-0

[Event "22nd Hoogeveen Open 2018"]
[Site "Hoogeveen"]
[Date "2018.10.20"]
[Round "1"]
[White "Baskin, Robert"]
[Black "Verhoef, Pieter"]
[Result "1-0"]
[ECO "B90"]
[WhiteElo "2348"]
[BlackElo "2058"]
[Annotator "NA"]
[PlyCount "133"]
[EventDate "2018.10.20"]
[EventType "swiss"]
[EventCountry "NED"]
[SourceTitle "playchess.com"]
[Source "ChessBase"]
[SourceQuality "1"]
[TimeControl "40/5400+30:1800+30"]

1. e4 {[%emt 0:00:00]} c5 {[%emt 0:00:00]} 2. Nf3 {[%emt 0:00:00]} d6 {[%emt 0:00:00]} 3. d4 {[%emt 0:02:26]} cxd4 {[%emt 0:00:00]} 4. Nxd4 {[%emt 0:00:04]} Nf6 {[%emt 0:00:20]} 5. Nc3 {[%emt 0:01:31]} a6 {[%emt 0:00:07]} 6. Be3 {[%emt 0:02:22]} e5 {[%emt 0:00:19]} 7. Nb3 {[%emt 0:00:07]} Be6 {[%emt 0:00:21]} 8. f3 {[%emt 0:00:15]} Be7 {[%emt 0:00:18]} 9. Qd2 {[%emt 0:00:07]} h5 $11 {[%emt 0:00:15]} 10. Nd5 {[%emt 0:01:24]} Bxd5 {[%emt 0:04:42]} 11. exd5 {[%emt 0:00:41]} Nbd7 {[%emt 0:00:05]} 12. c4 {[%emt 0:01:14]} Rc8 {[%emt 0:07:15]} 13. Na5 {[%emt 0:02:28]} Qc7 {[%emt 0:02:57]} 14. Be2 {[%emt 0:00:40]} h4 {[%emt 0:04:30]} 15. Rc1 {[%emt 0:03:11]} Kf8 {[%emt 0:06:58]} 16. b4 {[%emt 0:02:15]} g6 {[%emt 0:01:28]} 17. O-O {[%emt 0:07:31]} Nh5 {[%emt 0:04:26]} 18. c5 {[%emt 0:03:32]} dxc5 {[%emt 0:01:12]} 19. d6 {[%emt 0:00:14]} Qxd6 {[%emt 0:02:20]} 20. Qxd6 {[%emt 0:00:30]} Bxd6 {[%emt 0:00:08]} 21. Nxb7 {[%emt 0:01:37]} Be7 {[%emt 0:08:13]} 22. Rfd1 {[%emt 0:03:19]} Nb8 {[%emt 0:01:43]} 23. Nxc5 {[%emt 0:01:34]} Kg7 {[%emt 0:06:56]} 24. a3 {[%emt 0:03:01]} Nf4 {[%emt 0:02:58]} 25. Bf1 {[%emt 0:01:28]} Rc6 {[%emt 0:06:35]} 26. Nd3 {[%emt 0:06:13]} Nxd3 {[%emt 0:04:11]} 27. Rxc6 {[%emt 0:00:39]} Nxc6 {[%emt 0:00:07]} 28. Rxd3 {[%emt 0:00:59]} Nd4 {[%emt 0:05:37]} 29. Bxd4 {[%emt 0:02:59]} exd4 {[%emt 0:00:08]} 30. Rxd4 {[%emt 0:00:03]} a5 {[%emt 0:00:30]} 31. Rd7 {[%emt 0:00:35]} Bd8 {[%emt 0:00:07]} 32. Bc4 {[%emt 0:00:33]} Bb6+ {[%emt 0:02:45]} 33. Kf1 {[%emt 0:00:09]} Rc8 {[%emt 0:01:09]} 34. Rxf7+ {[%emt 0:01:24]} Kh6 {[%emt 0:00:26]} 35. Rf4 {[%emt 0:01:21]} Kh5 {[%emt 0:02:45]} 36. Re4 {[%emt 0:01:41]} axb4 {[%emt 0:00:20]} 37. axb4 {[%emt 0:00:05]} Rc6 {[%emt 0:03:23]} 38. Ke2 {[%emt 0:02:35]} Bc7 {[%emt 0:00:53]} 39. b5 {[%emt 0:02:55]} Rc5 {[%emt 0:00:59]} 40. f4 {[%emt 0:14:28]} g5 {[%emt 0:02:14]} 41. g3 {[%emt 0:30:15]} hxg3 {[%emt 0:35:33]} 42. hxg3 {[%emt 0:00:32]} Kg4 {[%emt 0:00:14]} 43. fxg5+ {[%emt 0:01:26]} Kf5 {[%emt 0:01:33]} 44. Kf3 {[%emt 0:01:21]} Kxg5 {[%emt 0:00:39]} 45. g4 {[%emt 0:02:18]} Kh4 {[%emt 0:12:16]} 46. Rd4 {[%emt 0:01:47]} Kg5 {[%emt 0:00:00]} 47. Rd5+ {[%emt 0:00:00]} Rxd5 {[%emt 0:00:00]} 48. Bxd5 {[%emt 0:00:00]} Bb6 {[%emt 0:00:00]} 49. Bc4 {[%emt 0:00:00]} Bg1 {[%emt 0:00:00]} 50. Be2 {[%emt 0:00:00]} Kf6 {[%emt 0:00:00]} 51. Ke4 {[%emt 0:00:00]} Ke7 {[%emt 0:00:00]} 52. Kd5 {[%emt 0:00:00]} Be3 {[%emt 0:00:00]} 53. Kc6 {[%emt 0:00:00]} Bf4 {[%emt 0:00:00]} 54. b6 {[%emt 0:00:00]} Be3 {[%emt 0:00:00]} 55. b7 {[%emt 0:00:00]} Bf4 {[%emt 0:00:00]} 56. g5 {[%emt 0:00:00]} Ke6 {[%emt 0:00:00]} 57. g6 {[%emt 0:00:00]} Kf6 {[%emt 0:00:00]} 58. Bd3 {[%emt 0:00:00]} Ke6 {[%emt 0:00:00]} 59. Bf5+ {[%emt 0:00:00]} Ke7 {[%emt 0:00:00]} 60. Kd5 {[%emt 0:00:00]} Kf6 {[%emt 0:00:00]} 61. Ke4 {[%emt 0:00:00]} Bh2 {[%emt 0:00:00]} 62. Kf3 {[%emt 0:00:00]} Bb8 {[%emt 0:00:00]} 63. Kg4 {[%emt 0:00:00]} Bc7 {[%emt 0:00:59]} 64. Bd3 {[%emt 0:00:00]} Bh2 {[%emt 0:00:49]} 65. Kh5 {[%emt 0:00:00]} Bf4 {[%emt 0:00:07]} 66. b8=Q {[%emt 0:00:00]} Bxb8 {[%emt 0:00:11]} 67. Kh6 {[%emt 0:00:00]} 1-0

[Event "22nd Hoogeveen Open 2018"]
[Site "Hoogeveen"]
[Date "2018.10.20"]
[Round "1"]
[White "Bertholee, Rob"]
[Black "Van de Pavoordt, Max"]
[Result "1/2-1/2"]
[ECO "C01"]
[WhiteElo "2334"]
[BlackElo "2034"]
[Annotator "NA"]
[PlyCount "136"]
[EventDate "2018.10.20"]
[EventType "swiss"]
[EventCountry "NED"]
[SourceTitle "playchess.com"]
[Source "ChessBase"]
[SourceQuality "1"]
[TimeControl "40/5400+30:1800+30"]

1. e4 {[%emt 0:00:00]} e6 {[%emt 0:00:00]} 2. d4 {[%emt 0:00:00]} d5 {[%emt 0:00:00]} 3. Bd3 {[%emt 0:00:16]} c5 {[%emt 0:03:16]} 4. exd5 {[%emt 0:00:29]} Qxd5 {[%emt 0:01:33] C01: French: Exchange Variation} (4... exd5 5. Nf3 Nf6 6. O-O c4 7. Re1+ Be7 8. Be2 O-O 9. b3 cxb3 10. axb3 Nc6 11. c3 Re8 12. Nbd2 Bd6 13. Bd3 Bg4 14. Rxe8+ Qxe8 {0-1 (52) Fontaine,R (2563)-Carlsen,M (2834) chess.com INT 2018}) 5. Bb5+ {[%emt 0:07:01]} Bd7 {[%emt 0:00:45]} 6. Bxd7+ {[%emt 0:00:04]} Nxd7 {[%emt 0:01:47]} 7. Nf3 {[%emt 0:00:14]} cxd4 {[%emt 0:02:19]} 8. Qxd4 {[%emt 0:01:23]} Qxd4 {[%emt 0:04:32]} 9. Nxd4 {[%emt 0:00:02]} a6 {[%emt 0:00:15]} 10. Ke2 $146 {[%emt 0:08:24]} ({Predecessor:} 10. O-O Ngf6 11. Rd1 g6 12. Nc3 {0-1 (31) Romero,J (1415)-Copin,J (1366) IECC email 2010}) 10... Ngf6 {[%emt 0:01:37]} 11. Rd1 {[%emt 0:00:15]} Rc8 {[%emt 0:02:55]} 12. c3 {[%emt 0:03:25]} Nd5 {[%emt 0:03:33]} 13. Nd2 {[%emt 0:03:56]} N7f6 {[%emt 0:07:52]} 14. N2b3 {[%emt 0:11:01]} Ne4 {[%emt 0:03:41]} 15. Kf3 {[%emt 0:03:20]} Nd6 {[%emt 0:03:58]} 16. a4 {[%emt 0:09:38]} Be7 {[%emt 0:02:01]} 17. Nd2 {[%emt 0:17:35]} Bf6 {[%emt 0:02:31]} 18. Ne4 {[%emt 0:01:03]} Nxe4 {[%emt 0:03:31]} 19. Kxe4 {[%emt 0:00:01] [#]} Rxc3 $1 {[%emt 0:02:59]} 20. Be3 {[%emt 0:03:17]} Rc8 {[%emt 0:02:31]} 21. Ra3 {[%emt 0:04:07]} O-O {[%emt 0:02:40]} 22. Rb3 {[%emt 0:00:04]} Rc7 {[%emt 0:01:37]} 23. Rc1 {[%emt 0:10:13]} Rxc1 {[%emt 0:04:49]} 24. Bxc1 {[%emt 0:00:02]} b6 {[%emt 0:01:21]} 25. a5 {[%emt 0:07:19]} b5 {[%emt 0:02:09]} 26. Nxb5 {[%emt 0:03:16]} axb5 {[%emt 0:01:09]} 27. Rxb5 {[%emt 0:00:01]} Ra8 {[%emt 0:01:54]} 28. Bd2 {[%emt 0:00:32]} Kf8 {[%emt 0:02:00]} 29. Rb7 {[%emt 0:00:28]} Be7 {[%emt 0:03:58]} 30. b4 {[%emt 0:01:01]} Bxb4 {[%emt 0:06:51]} 31. Bxb4+ {[%emt 0:00:09]} Nxb4 {[%emt 0:00:05]} 32. Rxb4 {[%emt 0:00:05]} Rxa5 {[%emt 0:00:07]} 33. h4 {[%emt 0:00:54]} Ke7 {[%emt 0:01:16]} 34. g3 {[%emt 0:01:42]} Kf6 {[%emt 0:03:15]} 35. Kf3 {[%emt 0:01:14]} h6 {[%emt 0:00:40]} 36. Rb7 {[%emt 0:00:51]} Kg6 {[%emt 0:02:28]} 37. Re7 {[%emt 0:00:32]} e5 {[%emt 0:01:46]} 38. Kg2 {[%emt 0:00:54]} f5 {[%emt 0:01:15]} 39. Kg1 {[%emt 0:02:07]} e4 {[%emt 0:01:45]} 40. Kf1 {[%emt 0:00:22]} Kf6 {[%emt 0:00:49]} 41. Rb7 {[%emt 0:30:18]} Re5 {[%emt 0:30:46]} 42. Kg2 {[%emt 0:00:23]} Re6 {[%emt 0:02:07]} 43. Ra7 {[%emt 0:00:35]} g5 {[%emt 0:00:46]} 44. hxg5+ {[%emt 0:00:05]} hxg5 {[%emt 0:00:15]} 45. Ra5 {[%emt 0:01:11]} Rd6 {[%emt 0:00:59]} 46. Rb5 {[%emt 0:01:37]} Rd2 {[%emt 0:01:04]} 47. Rb6+ {[%emt 0:00:00]} Ke5 {[%emt 0:00:00]} 48. Rb5+ {[%emt 0:00:00]} Rd5 {[%emt 0:00:00]} 49. Rb8 {[%emt 0:00:00]} Kd4 {[%emt 0:00:00]} 50. Ra8 {[%emt 0:00:00]} Kc3 {[%emt 0:00:00]} 51. Kf1 {[%emt 0:00:00]} f4 {[%emt 0:00:00]} 52. gxf4 {[%emt 0:00:00]} gxf4 {[%emt 0:00:00]} 53. Ke2 {[%emt 0:00:00]} Rd2+ {[%emt 0:00:00]} 54. Ke1 {[%emt 0:00:00]} Rb2 {[%emt 0:00:00]} 55. Rc8+ $15 {[%emt 0:00:00]} Kd4 {[%emt 0:00:00]} 56. Kf1 {[%emt 0:00:00]} f3 {[%emt 0:00:00]} 57. Rd8+ {[%emt 0:00:00]} Kc3 {[%emt 0:00:00]} 58. Rc8+ {[%emt 0:00:00]} Kd2 {[%emt 0:00:00]} 59. Rd8+ {[%emt 0:00:00]} Kc2 {[%emt 0:00:00]} 60. Rc8+ {[%emt 0:00:00]} Kd1 {[%emt 0:00:00]} 61. Rd8+ {[%emt 0:00:00]} Rd2 {[%emt 0:00:00]} 62. Re8 {[%emt 0:00:00]} Rd4 {[%emt 0:00:00]} 63. Re7 {[%emt 0:00:00]} Kd2 {[%emt 0:00:00]} 64. Re8 {[%emt 0:00:00]} Kd3 {[%emt 0:00:00]} 65. Ke1 {[%emt 0:00:00]} Rd7 {[%emt 0:00:00]} 66. Ra8 {[%emt 0:01:09]} Rb7 {[%emt 0:00:00]} 67. Rd8+ {[%emt 0:00:19]} Kc2 {[%emt 0:00:00]} 68. Rc8+ {[%emt 0:00:02]} Kd3 {[%emt 0:00:38]} 1/2-1/2

[Event "22nd Hoogeveen Open 2018"]
[Site "Hoogeveen"]
[Date "2018.10.20"]
[Round "1"]
[White "De Jong, Migchiel"]
[Black "Klaren, Duncan"]
[Result "1/2-1/2"]
[ECO "B52"]
[WhiteElo "2309"]
[BlackElo "1950"]
[Annotator "NA"]
[PlyCount "46"]
[EventDate "2018.10.20"]
[EventType "swiss"]
[EventCountry "NED"]
[SourceTitle "playchess.com"]
[Source "ChessBase"]
[SourceQuality "1"]
[TimeControl "40/5400+30:1800+30"]

1. e4 {[%emt 0:00:00]} c5 {[%emt 0:00:00]} 2. Nf3 {[%emt 0:00:00]} d6 {[%emt 0:00:00]} 3. Bb5+ {[%emt 0:00:17]} Bd7 {[%emt 0:00:00]} 4. c4 {[%emt 0:00:38]} g6 {[%emt 0:02:17]} 5. d4 {[%emt 0:00:14]} cxd4 {[%emt 0:00:14]} 6. Nxd4 {[%emt 0:00:07]} Bg7 {[%emt 0:00:55]} 7. Nc3 {[%emt 0:00:20]} Nf6 $14 {[%emt 0:01:34]} 8. O-O {[%emt 0:00:24]} Nc6 {[%emt 0:00:47]} 9. Bxc6 {[%emt 0:10:11]} bxc6 {[%emt 0:00:46]} 10. c5 {[%emt 0:00:43]} O-O {[%emt 0:04:18]} 11. cxd6 {[%emt 0:00:57]} exd6 {[%emt 0:01:43]} 12. Bf4 {[%emt 0:04:07]} Re8 {[%emt 0:01:34]} 13. Re1 {[%emt 0:01:29]} Qb6 {[%emt 0:11:32]} 14. Nb3 {[%emt 0:01:39]} Ng4 {[%emt 0:06:11]} 15. Qd2 {[%emt 0:06:30]} Be6 {[%emt 0:10:56]} 16. Qc2 {[%emt 0:12:13]} Rab8 {[%emt 0:05:53]} 17. Bxd6 {[%emt 0:43:10]} Bxb3 {[%emt 0:00:21]} 18. axb3 {[%emt 0:00:18]} Nxf2 {[%emt 0:00:24]} 19. Na4 {[%emt 0:02:57]} Nh3+ {[%emt 0:01:41]} 20. Kh1 {[%emt 0:00:15]} Nf2+ {[%emt 0:00:29]} 21. Kg1 {[%emt 0:00:06]} Nh3+ {[%emt 0:00:03]} 22. Kh1 {[%emt 0:00:24]} Nf2+ {[%emt 0:00:04]} 23. Kg1 {[%emt 0:00:37]} Nh3+ {[%emt 0:00:17]} 1/2-1/2

[Event "22nd Hoogeveen Open 2018"]
[Site "Hoogeveen"]
[Date "2018.10.20"]
[Round "1"]
[White "Warakomska, Anna"]
[Black "Van Foreest, Machteld"]
[Result "1-0"]
[ECO "B40"]
[WhiteElo "2293"]
[BlackElo "1934"]
[Annotator "NA"]
[PlyCount "69"]
[EventDate "2018.10.20"]
[EventType "swiss"]
[EventCountry "NED"]
[SourceTitle "playchess.com"]
[Source "ChessBase"]
[SourceQuality "1"]
[TimeControl "40/5400+30:1800+30"]

1. e4 {[%emt 0:00:00]} c5 {[%emt 0:00:48]} 2. Nf3 {[%emt 0:00:00]} e6 {[%emt 0:00:05]} 3. b3 {[%emt 0:01:12]} Nc6 {[%emt 0:04:14]} 4. Bb2 {[%emt 0:00:29]} Nf6 {[%emt 0:08:34]} 5. e5 {[%emt 0:01:29]} Nd5 {[%emt 0:00:53]} 6. c4 {[%emt 0:06:40]} Nf4 {[%emt 0:07:40]} 7. g3 {[%emt 0:00:53] B40: Sicilian: 2...e6, Unusual lines} Ng6 {[%emt 0:00:16]} 8. Bg2 {[%emt 0:00:35]} Qc7 {[%emt 0:08:28]} (8... Be7 9. O-O O-O 10. Na3 a6 11. Nc2 Qc7 12. Qe2 b6 13. d4 cxd4 14. Ncxd4 Bb7 {1-0 (38) Hossain,E (2452)-Tran,M (2409) Chengdu 2017}) 9. Qe2 {[%emt 0:01:42]} Nb4 {[%emt 0:05:21]} 10. Na3 {[%emt 0:03:45]} d6 $146 {[%emt 0:10:53]} ({Predecessor:} 10... a6 11. O-O Be7 12. d4 cxd4 13. Bxd4 Nc6 14. Bb2 O-O {1-0 (26) Jacek,M (2045)-Med,L (1872) Tabor 2011}) 11. exd6 {[%emt 0:21:55]} Qxd6 {[%emt 0:02:15]} 12. d4 {[%emt 0:02:28]} cxd4 {[%emt 0:06:54]} 13. Nb5 {[%emt 0:01:48]} Qd8 {[%emt 0:03:14]} 14. Nbxd4 {[%emt 0:02:26]} Be7 {[%emt 0:04:03]} 15. O-O {[%emt 0:02:25]} O-O {[%emt 0:00:33]} 16. a3 {[%emt 0:03:27]} Nc6 {[%emt 0:01:41]} 17. Nxc6 {[%emt 0:01:06]} bxc6 {[%emt 0:01:42]} 18. Nd4 {[%emt 0:00:15]} Bb7 {[%emt 0:01:52]} 19. Nxc6 {[%emt 0:01:24]} Qc7 {[%emt 0:02:43]} 20. Nxe7+ {[%emt 0:01:12]} Qxe7 {[%emt 0:00:14]} 21. h4 {[%emt 0:08:45]} Rab8 {[%emt 0:04:52]} 22. b4 {[%emt 0:02:59]} Bxg2 {[%emt 0:01:44]} 23. Kxg2 {[%emt 0:00:05]} Qb7+ {[%emt 0:02:12]} 24. Kg1 {[%emt 0:01:40]} Qa6 {[%emt 0:01:55]} 25. Rad1 {[%emt 0:05:49]} Rfc8 {[%emt 0:01:34]} 26. h5 {[%emt 0:05:31]} Ne7 {[%emt 0:01:17]} 27. b5 {[%emt 0:02:46]} Qb6 {[%emt 0:01:16]} 28. Qg4 {[%emt 0:04:22]} Nf5 $18 {[%emt 0:00:34]} 29. Bxg7 {[%emt 0:01:05]} Rxc4 {[%emt 0:04:17]} 30. Qxc4 {[%emt 0:02:52]} Kxg7 {[%emt 0:00:12]} 31. a4 {[%emt 0:00:40]} Rg8 {[%emt 0:01:38]} 32. Rd3 {[%emt 0:02:23]} h6 {[%emt 0:02:59]} 33. Qc6 {[%emt 0:02:28]} Qb8 {[%emt 0:01:44]} 34. Rc1 {[%emt 0:00:45]} Kh7 {[%emt 0:00:36]} 35. Qc7 {[%emt 0:02:36]} 1-0

[Event "22nd Hoogeveen Open 2018"]
[Site "Hoogeveen"]
[Date "2018.10.20"]
[Round "1"]
[White "Bluhm, Sonja Maria"]
[Black "Minko, Dmitry"]
[Result "1-0"]
[ECO "C55"]
[WhiteElo "2281"]
[BlackElo "2011"]
[Annotator "NA"]
[PlyCount "81"]
[EventDate "2018.10.20"]
[EventType "swiss"]
[EventCountry "NED"]
[SourceTitle "playchess.com"]
[Source "ChessBase"]
[SourceQuality "1"]
[TimeControl "40/5400+30:1800+30"]

1. e4 {[%emt 0:00:00]} e5 {[%emt 0:00:00]} 2. Nf3 {[%emt 0:00:00]} Nc6 {[%emt 0:00:00]} 3. Bc4 {[%emt 0:00:00]} Nf6 {[%emt 0:00:00]} 4. d3 {[%emt 0:00:00]} h6 {[%emt 0:01:39]} 5. c3 {[%emt 0:00:24]} g6 {[%emt 0:01:18]} 6. O-O {[%emt 0:09:02]} Bg7 {[%emt 0:01:32]} 7. a4 {[%emt 0:03:39]} a5 {[%emt 0:15:05]} 8. h3 {[%emt 0:02:31]} O-O $11 {[%emt 0:05:08]} 9. Be3 {[%emt 0:00:11]} d5 {[%emt 0:03:06]} 10. exd5 {[%emt 0:01:34]} Nxd5 {[%emt 0:00:13]} 11. Bc5 {[%emt 0:00:53]} Nde7 {[%emt 0:06:04]} 12. Re1 {[%emt 0:03:44]} Be6 {[%emt 0:20:30]} 13. Bb5 {[%emt 0:04:30]} Qd5 {[%emt 0:05:53]} 14. d4 {[%emt 0:01:51]} exd4 {[%emt 0:03:26]} 15. cxd4 {[%emt 0:00:12]} Rfd8 {[%emt 0:05:15]} 16. Nc3 {[%emt 0:01:19]} Qh5 {[%emt 0:02:37]} 17. Ne5 {[%emt 0:05:35]} Qxd1 {[%emt 0:03:54]} 18. Raxd1 {[%emt 0:00:09]} Bxe5 {[%emt 0:01:56]} 19. dxe5 {[%emt 0:00:38]} b6 {[%emt 0:01:40]} 20. Ba3 {[%emt 0:06:02]} Nb4 {[%emt 0:01:08]} 21. Rc1 {[%emt 0:07:06]} Nf5 {[%emt 0:07:18]} 22. Ne4 {[%emt 0:00:54]} c5 {[%emt 0:01:47]} 23. f4 {[%emt 0:09:59]} Nd3 {[%emt 0:00:59]} 24. Bxd3 {[%emt 0:03:31]} Rxd3 {[%emt 0:00:02]} 25. Rc3 {[%emt 0:00:57]} Rad8 {[%emt 0:00:48]} 26. g4 {[%emt 0:03:00]} Nh4 {[%emt 0:01:56]} 27. Kf2 {[%emt 0:00:42]} Rxc3 {[%emt 0:02:23]} 28. bxc3 {[%emt 0:02:15]} Rd3 {[%emt 0:00:08]} 29. Rb1 {[%emt 0:03:36]} Rf3+ {[%emt 0:02:30]} 30. Ke2 {[%emt 0:02:41]} Bc4+ {[%emt 0:03:38]} 31. Kd2 {[%emt 0:00:11]} Kg7 {[%emt 0:00:33]} 32. Rb3 {[%emt 0:01:47]} b5 33. Rxb5 {[%emt 0:00:29]} Re3 {[%emt 0:02:32]} 34. Rb6 Rd3+ {[%emt 0:01:00]} 35. Kc1 {[%emt 0:10:03]} Ng2 {[%emt 0:00:33]} 36. Rb8 {[%emt 0:06:32]} Ne3 {[%emt 0:00:14]} 37. Bxc5 {[%emt 0:03:44]} Rd1+ {[%emt 0:00:13]} 38. Kb2 {[%emt 0:00:09]} Bd3 {[%emt 0:00:04]} 39. Bf8+ {[%emt 0:00:39]} Kh8 {[%emt 0:00:35]} 40. Be7+ {[%emt 0:00:42]} Kh7 {[%emt 0:00:17]} 41. Nf6+ {[%emt 0:30:07]} 1-0

[Event "22nd Hoogeveen Open 2018"]
[Site "Hoogeveen"]
[Date "2018.10.20"]
[Round "1"]
[White "Schippers, Maurice"]
[Black "De Vries, Emma"]
[Result "1-0"]
[ECO "C06"]
[WhiteElo "2272"]
[BlackElo "1905"]
[Annotator "NA"]
[PlyCount "77"]
[EventDate "2018.10.20"]
[EventType "swiss"]
[EventCountry "NED"]
[SourceTitle "playchess.com"]
[Source "ChessBase"]
[SourceQuality "1"]
[TimeControl "40/5400+30:1800+30"]

1. e4 {[%emt 0:00:00]} e6 {[%emt 0:00:00]} 2. d4 {[%emt 0:00:00]} d5 {[%emt 0:00:00]} 3. Nd2 {[%emt 0:00:00]} Nf6 {[%emt 0:00:00]} 4. e5 {[%emt 0:00:00]} Nfd7 {[%emt 0:00:00]} 5. c3 {[%emt 0:00:17]} c5 {[%emt 0:00:09]} 6. Bd3 {[%emt 0:00:04]} Nc6 {[%emt 0:00:05]} 7. Ne2 {[%emt 0:00:04]} cxd4 {[%emt 0:01:16]} 8. cxd4 {[%emt 0:00:31]} f6 {[%emt 0:00:13]} 9. exf6 {[%emt 0:00:04]} Nxf6 {[%emt 0:00:05]} 10. Nf3 {[%emt 0:00:42]} Bd6 {[%emt 0:00:21]} 11. O-O {[%emt 0:00:38]} Qc7 {[%emt 0:00:24]} 12. h3 {[%emt 0:01:34]} O-O {[%emt 0:01:02]} 13. Be3 {[%emt 0:00:33] C06: French Tarrasch: 3...Nf6 4 e5 Nfd7 5 Bd3 main lines} Bd7 {[%emt 0:05:16]} 14. Nc3 {[%emt 0:01:33]} (14. Re1 Be8 15. Ng5 Bf7 16. Rc1 Kh8 17. a3 Bg8 18. b4 a6 19. g3 h6 20. Nf4 Bxf4 21. Bxf4 {1-0 (38) Navara,D (2729)-Michiels,B (2563) Wijk aan Zee 2015 CBM 165 [Navara,D]}) 14... a6 {[%emt 0:00:15]} 15. Re1 {[%emt 0:00:25]} Rae8 {[%emt 0:05:37]} 16. Rc1 {[%emt 0:01:12]} Qb8 {[%emt 0:18:09]} 17. a3 {[%emt 0:03:23]} b5 {[%emt 0:09:17]} 18. b4 {[%emt 0:04:03]} Re7 {[%emt 0:05:12]} 19. Qb3 {[%emt 0:19:40]} Kh8 {[%emt 0:08:16]} 20. Qb1 $146 {[%emt 0:02:50]} ({Predecessor:} 20. Ng5 h6 21. Nf3 g5 22. Qb1 {0-1 (42) Doumas,G (2014)-Tepelenis,N (2156) Eretria 2011}) 20... Qe8 {[%emt 0:06:46]} 21. Ne2 {[%emt 0:07:12]} Qb8 {[%emt 0:20:34]} 22. Ng5 {[%emt 0:15:37]} g6 {[%emt 0:01:20]} 23. f4 {[%emt 0:15:26]} (23. Qb3 $14) 23... a5 {[%emt 0:02:15]} 24. Bd2 {[%emt 0:03:49]} Qa7 $16 {[%emt 0:01:34]} ({Black should play} 24... axb4 $11 25. axb4 Nh5) 25. Nf3 {[%emt 0:02:07]} e5 {[%emt 0:03:26]} 26. fxe5 {[%emt 0:02:45]} Nxe5 {[%emt 0:00:29]} 27. Nxe5 {[%emt 0:01:01]} Rxe5 {[%emt 0:01:03]} 28. bxa5 {[%emt 0:03:38]} Bxa3 {[%emt 0:02:42]} 29. Bb4 {[%emt 0:02:49]} Rxe2 {[%emt 0:02:48]} 30. Bxa3 {[%emt 0:02:09]} Qxd4+ {[%emt 0:01:05]} 31. Kh1 {[%emt 0:01:31]} Rxe1+ {[%emt 0:01:18]} 32. Rxe1 {[%emt 0:00:04]} Rf7 {[%emt 0:02:54]} 33. Rf1 {[%emt 0:04:44]} Kg7 {[%emt 0:00:52]} 34. Bb2 {[%emt 0:00:58]} Qc5 {[%emt 0:00:33]} 35. Qa1 {[%emt 0:00:45]} Qc6 {[%emt 0:00:22]} 36. Bd4 {[%emt 0:01:24]} Qd6 {[%emt 0:01:16]} 37. a6 {[%emt 0:01:17]} Bc6 {[%emt 0:00:33]} 38. a7 {[%emt 0:00:30]} Ba8 {[%emt 0:00:09]} 39. Bxb5 {[%emt 0:00:53]} 1-0